Workbook

Sheet 封面
A2: 2020
A5: 攀枝花统计月报
A7: 11月
A17: 二0二0年十二月

Sheet 全市经济
A1: 全市主要经济指标 | G1: （二）攀枝花生产总值
A2: （一）综合 | I2: 单位：万元
A3: 指标 | B3: 单位 | C3: 本月止累计 | D3: ±% | E3: 备注 | H3: 前三季度 | I3: 累计±%
A4: 一、地区生产总值(GDP) | B4: 亿元 | C4: =H4/10000 -> 744.59 | D4: =I4 -> 2.5 | E4: 前三季度 | G4: 地区生产总值 | H4: 7445929 | I4: 2.5
A5: 二、农林牧渔业总产值 | B5: 亿元 | C5: 107.67 | D5: 3.9 | E5: =E4 -> 前三季度 | G5: # 第一产业增加值 | H5: 646486 | I5: 3.8
A6: 三、规上工业增加值 | B6: % | C6: - | D6: =B30 -> 3.6 | G6: 第二产业增加值 | H6: 3901335 | I6: 3.3
A7: 四、全社会固定资产投资 | B7: 亿元 | C7: - | D7: =H60 -> 9.6 | G7: 第三产业增加值 | H7: 2898108 | I7: 0.5
A8: 五、社会消费品零售总额 | B8: 亿元 | C8: =B94/10000 -> 209.62 | D8: =C94 -> -3.1 | G8: # 批发和零售业增加值 | H8: 691625 | I8: -7.6
A9: 六、城镇居民人均可支配收入 | B9: 元 | C9: =B150 -> 34480 | D9: =C150 -> 5.9 | E9: =E4 -> 前三季度 | G9: 交通运输、仓储和邮政业增加值 | H9: 294582 | I9: 2.8
A10: 七、农村居民人均可支配收入 | B10: 元 | C10: =H150 -> 14752 | D10: =I150 -> 8.2 | E10: =E4 -> 前三季度 | G10: 住宿和餐饮业增加值 | H10: 159305 | I10: -8.3
A11: 八、居民消费价格指数 | B11: % | C11: =I120 -> 104.4 | D11: =C11-100 -> 4.4 | G11: 金融业增加值 | H11: 169375 | I11: -0.5
A12: 九、一般公共预算收入 | B12: 亿元 | C12: =H95/10000 -> 60.59 | D12: =I95 -> 5.8 | G12: 房地产业增加值 | H12: 291225 | I12: 3.4
A13: 一般公共预算支出 | B13: 亿元 | C13: =H100/10000 -> 114.01 | D13: =I100 -> 0.9 | G13: 其他服务业增加值 | H13: 1281458 | I13: 4.0
A14: 十、税务局组织收入 | B14: 亿元 | C14: =H105/10000 -> 115.95 | D14: =I105 -> 9.0
A15: 其中：税收收入 | B15: 亿元 | C15: =H106/10000 -> 90.06 | D15: =I106 -> 0.9 | G15: 说明：按《国民经济行业分类》（GB/T 4754—2017）和《三次产业划分规定》，第一产业指农、林、牧、渔业（不含农、林、牧、渔专业及辅助性活动）；第二产业指工业（不含开采专业及辅助性活动，金属制品、机械和设备修理业）和建筑业；第三产业即服务业，指除第一产业、第二产业以外的其他行业。
A16: 十一、金融机构人民币存款余额 | B16: 亿元 | C16: =B121/10000 -> 1109.77 | D16: =D121 -> 2.7 | E16: 比年初±%
A17: 金融机构人民币贷款余额 | B17: 亿元 | C17: =B133/10000 -> 722.63 | D17: =D133 -> -12.5 | E17: 比年初±%
A18: 十二、进出口总额 | B18: 亿元 | C18: =B101 -> 28.11 | D18: =C101 -> -6.8
A19: 其中：出口总额 | B19: 亿元 | C19: =B102 -> 11.19 | D19: =C102 -> -5.8
A20: 十三、招商引资当年到位资金 | B20: 亿元 | C20: =B104/10000 -> 733.57 | D20: =C104 -> 0.05
A27: （三）工业 | G27: （三）工业
I28: 单位：万元
B29: 本月止 累计±% | G29: 规模以上工业企业经济效益 | H29: 1-10月止 累计 | I29: ±%
A30: 一、规上工业增加值 | B30: 3.6 | G30: 企业单位数（个） | H30: 349
A31: # 轻工业 | B31: 10.2 | G31: 其中：亏损企业 | H31: 52
A32: 重工业 | B32: 3.5 | G32: 亏损面（%） | H32: 14.9
A33: #黑色金属冶炼和压延加工业 | B33: 7.3 | G33: 流动资产合计 | H33: 9112397 | I33: 1.6
A34: 黑色金属矿采选业 | B34: -7.0 | G34: 其中：存货 | H34: 1039977 | I34: -6.6
A35: 化学原料和化学制品制造业 | B35: 2.0 | G35: 资产合计 | H35: 26868748 | I35: 4.2
A36: 煤炭开采和洗选业 | B36: -4.4 | G36: 负债合计 | H36: 16501326 | I36: 2.5
A37: 金属制品业 | B37: -0.8 | G37: 营业收入 | H37: 14898022 | I37: -0.8
A38: 石油、煤炭及其他燃料加工业 | B38: -6.4 | G38: 营业成本 | H38: 13020176 | I38: -0.2
A39: 电力、热力生产和供应业 | B39: 1.8 | G39: 利润总额 | H39: 819484 | I39: -9.1
A40: 有色金属矿采选业 | B40: 22.1
A41: 非金属矿物制品业 | B41: 37.0
A42: 汽车制造业 | B42: -7.1
A43: 二、产销率（%） | B43: 97.7
A57: （四）能源 | G57: （五）投资
C59: 本月止累计 | D59: 累计±% | H59: 本月止 累计±% | I59: 占比%
A60: 一、规上工业综合能源消费量（万吨标准煤） | C60: 725.77 | D60: -1.2 | G60: 一、全社会固定资产投资 | H60: 9.6 | I60: 100
A61: （一）按工业行业分 | G61: # 项目投资 | H61: 11.9 | I61: 84.1
A62: 采矿业 | C62: 121.85 | D62: -4.4 | G62: # 民间投资 | H62: 16.0 | I62: 48.9
A63: 制造业 | C63: 596.95 | D63: -0.6 | G63: (一)按构成分
A64: 电力、热力、燃气及水生产和供应业 | C64: 6.97 | D64: 11.5 | G64: 1.建安工程 | H64: 9.4 | I64: 82.3
A65: （二）高耗能行业 | G65: 2.设备工器具购置 | H65: 15.5 | I65: 13.6
A66: 石油、煤炭及其他燃料加工业 | C66: 50.39 | D66: -11.1 | G66: 3.其他费用 | H66: -2.6 | I66: 4.1
A67: 化学原料和化学制品制造业 | C67: 64.60 | D67: -9.8 | G67: （二）按结构分
A68: 非金属矿物制品业 | C68: 22.21 | D68: -3.1 | G68: 1.基础设施投资 | H68: 4.8 | I68: 38.6
A69: 黑色金属冶炼和压延加工业 | C69: 416.82 | D69: 1.8 | G69: 2.产业投资 | H69: 20.8 | I69: 33
A70: 有色金属冶炼和压延加工业 | C70: 3.28 | D70: 0.0 | G70: 3.民生及社会事业投资 | H70: -1.9 | I70: 11.7
A71: 电力、热力生产和供应业 | C71: 5.39 | D71: 13.0 | G71: 4.房地产开发 | H71: -0.4 | I71: 13.7
A72: 二、全社会用电量(亿千瓦时) | C72: 128.94 | D72: 3.3 | G72: 5.其他投资 | H72: 112.8 | I72: 3
A73: 其中：工业用电量 | C73: 113.26 | D73: 3.3 | G73: (三)按行业分
A74: 三、规上工业新能源产品产量（亿千瓦时） | G74: 1.第一产业 | H74: -12.3 | I74: 3.6
A75: 风力发电量 | C75: 8.65 | D75: -14.4 | G75: 2.第二产业 | H75: 15.5 | I75: 34.1
A76: 太阳能发电量 | C76: 2.98 | D76: -3.6 | G76: # 工业 | H76: 15.6 | I76: 33.9
G77: 3.第三产业 | H77: 8.2 | I77: 62.3
H80: 本月止累计 | I80: 累计±%
G81: 二、商品房开发与销售（万平方米）
G82: (一)房屋施工面积 | H82: 595.37 | I82: -31.6
G83: # 住宅 | H83: 449.98 | I83: -20.7
G84: (二)房屋竣工面积 | H84: 44.27 | I84: 24.9
G85: # 住宅 | H85: 33.93 | I85: 15.7
G86: (三)商品房销售面积(含现房、期房） | H86: 142.53 | I86: 5.1
G87: # 住宅 | H87: 124.16 | I87: 1.4
G88: （四）商品房待售面积 | H88: 61.11 | I88: 26
G89: # 住宅 | H89: 18.47 | I89: 66.9
A91: （六）国内外贸易 | G91: （七）财政、税收
C92: 单位：万元 | I92: 单位：万元
B93: 本月止累计 | C93: 累计±% | H93: 本月止累计 | I93: 累计±%
A94: 一、社会消费品零售总额 | B94: 2096234 | C94: -3.1 | G94: 一、地方财政收入
A95: (一)按经营地分 | G95: 1.一般公共预算收入 | H95: 605912 | I95: 5.8
A96: 城镇 | B96: 1909302 | C96: -3.2 | G96: 其中：税收收入 | H96: 434410 | I96: 3.9
A97: 乡村 | B97: 186932 | C97: -2.1 | G97: 非税收入 | H97: 171502 | I97: 11.0
A98: (二)按消费形态分 | G98: 2.政府性基金收入 | H98: 223565 | I98: -22.5
A99: 餐饮收入 | B99: 270083 | C99: -9.5 | G99: 二、地方财政支出
A100: 商品零售 | B100: 1826151 | C100: -2.1 | G100: 1.一般公共预算支出 | H100: 1140076 | I100: 0.9
A101: 二、外贸进出口总额（亿元） | B101: 28.11 | C101: -6.8 | G101: 其中：一般公共服务 | H101: 140033 | I101: -13.3
A102: 出口总额 | B102: 11.19 | C102: -5.8 | G102: 教育 | H102: 205043 | I102: -4.0
A103: 进口总额 | B103: 16.91 | C103: -7.4 | G103: 社会保障和就业 | H103: 132048 | I103: 4.2
A104: 二、招商引资当年到位资金额 | B104: 7335730 | C104: 0.05 | G104: 2.政府性基金支出 | H104: 545953 | I104: 18.9
A105: 国内省外到位资金 | B105: 3065189 | C105: 2.3 | G105: 三、税务局组织收入总计 | H105: 1159528 | I105: 9.0
A106: 省内到位资金 | B106: 4270541 | C106: -1.5 | G106: # 税收合计 | H106: 900581 | I106: 0.9
A107: 注：根据第四次全国经济普查结果对2019年社会消费品零售总额进行了修订，2020年增速按照可比口径计算。 | G107: # 第三产业 | H107: 348787 | I107: -1.6
G108: # 增值税 | H108: 455251 | I108: -8.3
G109: 消费税 | H109: 13486 | I109: -21.4
G110: 注：在税务局组织收入总计累计数据中，出口退税4908万元，
G111: 其他收入9935万元。
A116: （八）金 融 | G116: （九）城市物价
D117: 单位：万元 | I117: 单位：%
B118: 本月末 | C118: 比年初增减 | G118: 城市物价(上年同期=100) | H118: 当月同比 指数 | I118: 1-11月同比指数
C119: 绝对额 | D119: ±%
A120: 一、金融机构本外币各项存款余额 | B120: 11116471 | C120: 291139 | D120: 2.7 | G120: 一、居民消费价格总指数 | H120: 99.9 | I120: 104.4
A121: 金融机构人民币各项存款余额 | B121: 11097738 | C121: 291320 | D121: 2.7 | G121: # 消费品价格指数 | H121: 101.0 | I121: 106.9
A122: 1.住户存款 | B122: 7722442 | C122: 593827 | D122: 8.3 | G122: # 服务价格指数 | H122: 97.4 | I122: 99.5
A123: # 活期存款 | B123: 2519459 | C123: 192503 | D123: 8.3 | G123: 1.食品烟酒 | H123: 104.0 | I123: 115.4
A124: 定期及其他存款 | B124: 5202983 | C124: 401325 | D124: 8.4 | G124: 粮 食 | H124: 100.7 | I124: 99.2
A125: 2.非金融企业存款 | B125: 1674036 | C125: -65075 | D125: -3.7 | G125: 鲜 菜 | H125: 118.6 | I125: 109.4
A126: # 活期存款 | B126: 931233 | C126: 26717 | D126: 3.0 | G126: 畜 肉 | H126: 98.4 | I126: 150.9
A127: 定期及其他存款 | B127: 742803 | C127: -91791 | D127: -11.0 | G127: 水 产 品 | H127: 100.5 | I127: 104.4
A128: 3.广义政府存款 | B128: 1685214 | C128: -251348 | D128: -13.0 | G128: 蛋 | H128: 81.8 | I128: 89.6
A129: 财政性存款 | B129: 154578 | C129: -35402 | D129: -18.6 | G129: 鲜 果 | H129: 114.8 | I129: 93.5
A130: 机关团体存款 | B130: 1530636 | C130: -215947 | D130: -12.4 | G130: 2.衣着 | H130: 98.6 | I130: 99.4
A131: 4.非银行业金融机构存放 | B131: 15113 | C131: 13777 | D131: 1031.9 | G131: 3.居住 | H131: 96.3 | I131: 98.4
A132: 二、金融机构本外币各项贷款余额 | B132: 7240049 | C132: -1047921 | D132: -12.6 | G132: 4.生活用品及服务 | H132: 97.8 | I132: 99.1
A133: 金融机构人民币各项贷款余额 | B133: 7226294 | C133: -1037037 | D133: -12.5 | G133: 5.交通和通信 | H133: 96.9 | I133: 98.2
A134: 1.住户贷款 | B134: 1370690 | C134: 279040 | D134: 25.6 | G134: 6.教育文化和娱乐 | H134: 98.3 | I134: 100.2
A135: # 短期贷款 | B135: 318925 | C135: 89523 | D135: 39.0 | G135: 7.医疗保健 | H135: 98.2 | I135: 99.6
A136: 中长期贷款 | B136: 1051765 | C136: 189517 | D136: 22.0 | G136: 8.其他用品和服务 | H136: 103.5 | I136: 103.9
A137: 2.非金融企业及机关团体贷款 | B137: 5855604 | C137: -1316077 | D137: -18.4 | G137: 二、商品零售价格总指数 | H137: 99.3 | I137: 104.0
A138: # 短期贷款 | B138: 1514678 | C138: -457328 | D138: -23.2
A139: 中长期贷款 | B139: 3633091 | C139: 240444 | D139: 7.1
A140: 票据融资 | B140: 689497 | C140: -1115181 | D140: -61.8
A141: 3.非银行金融机构贷款
A142: 三、金融机构外汇贷款余额（万美元） | B142: 2091 | C142: -1441 | D142: -40.8
A143: 四、个人消费贷款余额 | B143: 765717 | C143: 191677 | D143: 33.4
A144: # 住房消费贷款 | B144: 584589 | C144: 111566 | D144: 23.6
A145: 汽车消费贷款 | B145: 1697 | C145: 237 | D145: 16.3
A146: 五、签发承兑汇票余额 | B146: 280348 | C146: -418331 | D146: -59.9
A147: （十）城镇居民生活 | G147: （十一）农村居民生活
C148: 单位：元 | I148: 单位：元
B149: 前三季度 | C149: 累计±% | H149: =B149 -> 前三季度 | I149: 累计±%
A150: 一、城镇居民人均可支配收入 | B150: 34480 | C150: 5.9 | G150: 一、农村居民人均可支配收入 | H150: 14752 | I150: 8.2
A151: 其中: 工资性收入 | B151: 20653 | C151: 6.8 | G151: 其中：工资性收入 | H151: 4852 | I151: 8.0
A152: 经营净收入 | B152: 6027 | C152: -5.3 | G152: 经营净收入 | H152: 8760 | I152: 8.9
A153: 财产净收入 | B153: 1354 | C153: 6.1 | G153: 财产净收入 | H153: 301 | I153: 2.1
A154: 转移净收入 | B154: 6446 | C154: 15.7 | G154: 转移净收入 | H154: 840 | I154: 4.8
A155: 二、城镇居民人均消费支出 | B155: 17914 | C155: -6.8 | G155: 二、农村居民人均消费支出 | H155: 9482 | I155: 2.7
A156: 其中：食品烟酒 | B156: 6328 | C156: 1.0 | G156: 其中：食品烟酒 | H156: 2760 | I156: 6.8
A157: 衣着 | B157: 1150 | C157: -8.0 | G157: 衣着 | H157: 444 | I157: 7.4
A158: 居住 | B158: 2909 | C158: -2.6 | G158: 居住 | H158: 1640 | I158: 14.8
A159: 生活用品及服务 | B159: 1262 | C159: 0.3 | G159: 生活用品及服务 | H159: 593 | I159: 0.2
A160: 医疗保健 | B160: 1721 | C160: -2.7 | G160: 交通和通信 | H160: 2161 | I160: -1.4
A161: 交通和通信 | B161: 2460 | C161: -22.3 | G161: 教育、文化和娱乐 | H161: 742 | I161: -2.5
A162: 教育、文化和娱乐 | B162: 1659 | C162: -17.9 | G162: 医疗保健 | H162: 913 | I162: -12.7
A163: 其他用品及服务 | B163: 425 | C163: -14.8 | G163: 其他用品及服务 | H163: 228 | I163: 5.5

Sheet Sheet1
